bitfinex/quotes_BTCUSD_20250108
["timestamp","ask_amount","ask_price","bid_price","bid_amount"]
[1736341197929,0.60035325,94951.0,94950.0,1.6816231]
[1736341198108,0.60035325,94951.0,94950.0,1.6846231]
[1736341198919,0.60035325,94951.0,94950.0,1.5346231]
[1736341199615,0.60035325,94951.0,94950.0,0.0346231]
[1736341200006,0.60035325,94951.0,94950.0,0.0336231]
[1736341200382,0.60035325,94951.0,94950.0,0.0267289]
[1736341200555,0.60035325,94951.0,94950.0,0.2373659]
[1736341200759,0.60035325,94951.0,94950.0,0.0267289]
[1736341200939,0.60035325,94951.0,94950.0,0.0237289]
[1736341201349,0.52505325,94951.0,94950.0,0.51366566]
[1736341201550,0.52505325,94951.0,94950.0,0.51986566]
[1736341201894,0.52505325,94951.0,94950.0,2.15275195]
[1736341202102,0.44080125,94951.0,94950.0,2.25275195]
[1736341202313,0.41973825,94951.0,94950.0,2.21986566]
[1736341202516,0.41973825,94951.0,94950.0,2.27534566]
[1736341202736,0.41973825,94951.0,94950.0,2.27334566]
[1736341202937,0.41973825,94951.0,94950.0,2.27734566]
[1736341203355,0.41973825,94951.0,94950.0,0.16077976]
[1736341203487,0.41973825,94951.0,94950.0,0.39266489]
[1736341203868,0.41973825,94951.0,94950.0,0.39866489]
[1736341204087,0.14736484,94951.0,94950.0,0.94326489]
[1736341204290,0.1,95000.0,94963.0,0.5446]
[1736341204489,0.1,94998.0,94988.0,0.210552]
[1736341204605,0.6502206,94989.0,94988.0,0.05648]
[1736341205011,0.6027206,94989.0,94988.0,0.05648]
[1736341205167,0.5266206,94989.0,94988.0,1.55648]
[1736341205366,0.5266206,94989.0,94988.0,1.68377976]
[1736341205571,0.5266206,94989.0,94988.0,1.83377976]
[1736341205774,0.43776016,94989.0,94988.0,1.83377976]
[1736341205991,0.1776,95025.0,94988.0,1.83377976]
[1736341205992,0.1,95038.0,95022.0,0.210477]
[1736341206305,0.00032369,95023.0,95022.0,0.266957]
[1736341206455,0.00032369,95023.0,95022.0,0.46477676]
[1736341206641,0.00032369,95023.0,95018.0,0.210485]
[1736341206847,0.00032369,95023.0,95020.0,0.21048]
[1736341207055,0.52652369,95023.0,95022.0,0.233477]
[1736341207261,0.52652369,95023.0,95022.0,1.03237676]
[1736341207467,0.52652369,95023.0,95022.0,2.53437676]
[1736341207684,0.52652369,95023.0,95022.0,2.04625676]
[1736341207905,0.52652369,95023.0,95022.0,2.59085676]
[1736341208120,0.0001708,95040.0,95023.0,0.173]
[1736341208341,0.0001708,95040.0,95022.0,2.59085676]
[1736341208342,0.0001708,95040.0,95039.0,0.928039]
[1736341208544,0.0001708,95040.0,95039.0,1.03233876]
[1736341208853,0.0001708,95040.0,95039.0,0.48773876]
[1736341209052,0.0001708,95040.0,95039.0,0.51493733]
[1736341209255,0.0001708,95040.0,95039.0,0.48773876]
[1736341209674,0.0001708,95040.0,95039.0,0.56509558]
[1736341210292,0.0001708,95040.0,95039.0,0.48773876]
[1736341210545,0.0001708,95040.0,95039.0,0.53153105]
[1736341210946,0.0011708,95040.0,95039.0,0.53153105]
[1736341211144,0.0001708,95040.0,95039.0,0.55453105]
[1736341211599,0.0011708,95040.0,95039.0,2.00709105]
[1736341211798,0.0001708,95040.0,95039.0,2.05453105]
[1736341212206,0.0001708,95040.0,95039.0,1.97509105]
[1736341212397,0.0011708,95040.0,95039.0,0.009]
[1736341212718,0.0001708,95040.0,95039.0,0.006]
[1736341213322,0.0001708,95040.0,95033.0,0.05644]
[1736341213523,0.0001708,95040.0,95039.0,0.002]
[1736341213923,0.0011708,95040.0,95039.0,0.011]
[1736341214126,0.0011708,95040.0,95039.0,0.009]
[1736341214322,0.0001708,95040.0,95039.0,0.001]
[1736341214801,0.0001708,95040.0,95039.0,0.007]
[1736341214802,0.1001708,95040.0,95039.0,0.007]
[1736341215022,0.2001708,95040.0,95039.0,0.007]
[1736341215258,0.1,95015.0,95000.0,0.12784095]
[1736341215457,0.1,95015.0,95013.0,0.00015289]
[1736341215458,0.52627,95015.0,95013.0,0.00015289]
[1736341215796,0.52627,95015.0,95014.0,0.210495]
[1736341216535,0.52627,95015.0,95014.0,0.46479476]
[1736341216962,0.52627,95015.0,95014.0,0.20644]
[1736341217370,0.1,95014.0,95013.0,0.00115289]
[1736341217577,0.1272,95014.0,95013.0,0.00015289]
[1736341217777,0.75347,95014.0,95013.0,0.00015289]
[1736341218303,0.65347,95014.0,95013.0,0.00015289]
[1736341218713,0.65347,95014.0,95013.0,0.01030302]
[1736341219117,0.52627,95014.0,95013.0,0.22080002]
[1736341219557,0.52727,95014.0,95013.0,0.27724002]
[1736341219757,0.52727,95014.0,95013.0,0.49809978]
[1736341219992,0.52727,95014.0,95013.0,0.55453978]
[1736341220161,0.52627,95014.0,95013.0,0.55453978]
[1736341220751,0.52827,95014.0,95013.0,0.55453978]
[1736341220961,0.52627,95014.0,95013.0,0.56511088]
[1736341221155,0.52627,95014.0,95013.0,0.56711088]
[1736341221380,0.52727,95014.0,95013.0,0.57611088]
[1736341221634,0.52627,95014.0,95013.0,2.06711088]
[1736341222133,0.52627,95014.0,95013.0,2.07011088]
[1736341222281,0.52627,95014.0,95013.0,2.06711088]
[1736341222511,0.44207,95014.0,95013.0,2.60971088]
[1736341222683,0.0001706,95048.0,95039.0,0.360439]
[1736341222910,0.0001706,95048.0,95039.0,0.5546321]
[1736341223559,0.0001706,95048.0,95039.0,2.0316321]
[1736341225520,0.0011708,95040.0,95039.0,2.0406321]
[1736341225721,0.0011708,95040.0,95039.0,2.0446321]
[1736341226144,0.0011708,95040.0,95039.0,2.0406321]
[1736341226699,0.0011708,95040.0,95039.0,1.93929234]
[1736341227431,0.0011708,95040.0,95039.0,2.0435921]
[1736341231449,0.0011708,95040.0,95039.0,2.0665921]
[1736341231863,0.0001708,95040.0,95039.0,2.0575921]
[1736341232367,0.0011708,95040.0,95039.0,2.0665921]
[1736341232591,0.0011708,95040.0,95039.0,2.0635921]
[1736341232810,0.0011708,95040.0,95039.0,2.0545921]
[1736341232811,0.0001708,95040.0,95039.0,2.0545921]
[1736341233189,0.0001708,95040.0,95039.0,2.0575921]
[1736341233451,0.0001708,95040.0,95039.0,2.0011921]
[1736341233709,0.0001708,95040.0,95039.0,2.0545921]
[1736341234236,8e-07,95040.0,95039.0,2.0615921]
[1736341234504,8e-07,95040.0,95039.0,2.6061921]
[1736341234757,8e-07,95040.0,95039.0,2.6151921]
[1736341235022,8e-07,95040.0,95039.0,2.6061921]
[1736341235296,4e-07,95048.0,95047.0,0.360422]
[1736341235533,4e-07,95048.0,95047.0,0.48772176]
[1736341235761,4e-07,95048.0,95047.0,0.49816155]
[1736341235955,4e-07,95048.0,95047.0,1.99816155]
[1736341236160,6e-07,95051.0,95050.0,0.383415]
[1736341236378,6e-07,95051.0,95050.0,1.03231476]
[1736341236614,6e-07,95051.0,95050.0,1.04274946]
[1736341236815,6e-07,95051.0,95050.0,1.04014079]
[1736341236965,6e-07,95051.0,95050.0,2.54014079]
[1736341237170,0.0801,95086.0,95079.0,0.360351]
[1736341237379,0.00068017,95080.0,95079.0,0.54405076]
[1736341237555,0.00068017,95080.0,95079.0,0.55183994]
[1736341237978,0.00068017,95080.0,95079.0,2.05183994]
[1736341238445,0.00068017,95080.0,95079.0,1.82243994]
[1736341238643,0.00068017,95080.0,95079.0,1.87883994]
[1736341238848,0.00068017,95080.0,95079.0,2.02883994]
[1736341239070,0.00168017,95080.0,95079.0,2.03783994]
[1736341239249,0.00068017,95080.0,95079.0,2.02883994]
[1736341239658,0.00168017,95080.0,95079.0,2.04828757]
[1736341239870,0.04888017,95080.0,95079.0,0.01678918]
[1736341240070,0.13098017,95080.0,95079.0,0.01678918]
[1736341240316,0.00168017,95080.0,95079.0,0.009]
[1736341240521,0.00068017,95080.0,95079.0,1.504]
[1736341240724,0.18238017,95080.0,95079.0,0.02350114]
[1736341240931,0.18238017,95080.0,95079.0,0.01462586]
[1736341241134,0.18238017,95080.0,95076.0,0.0564]
[1736341241369,0.08238017,95080.0,95077.0,0.01950792]
[1736341241579,0.245,95078.0,95077.0,0.01463094]
[1736341241756,0.245,95078.0,95071.0,0.0564]
[1736341241960,0.1,95064.0,95057.0,0.0564]
[1736341242167,0.1,95064.0,95058.0,0.210397]
[1736341242507,0.1,95064.0,95059.0,1.5564]
[1736341243101,0.1,95050.0,95049.0,0.0564]
[1736341243511,0.1,95048.0,95029.0,0.210461]
[1736341243717,0.1,95048.0,95040.0,0.0564]
[1736341244120,0.1,95048.0,95042.0,0.210433]
[1736341244544,0.1,95048.0,95043.0,0.0564]
[1736341244750,0.0763,95050.0,95045.0,0.210426]
[1736341244949,0.07624739,95050.0,95033.0,0.15]
[1736341245186,0.07624739,95050.0,95049.0,0.210417]
[1736341245437,0.07624739,95050.0,95049.0,0.216417]
[1736341245642,0.17624739,95050.0,95046.0,0.0564]
[1736341246053,0.1,95047.0,95046.0,0.0564]
[1736341246895,0.1,95047.0,95046.0,0.06816777]
[1736341247209,0.07624739,95050.0,95046.0,0.06816777]
[1736341247427,0.07624739,95050.0,95047.0,0.420843]
[1736341247820,0.07624739,95050.0,95048.0,0.01470463]
[1736341248450,0.07624739,95050.0,95049.0,0.210417]
[1736341248651,0.07624739,95050.0,95048.0,0.01470463]
[1736341248855,0.17624739,95050.0,95049.0,0.01176167]
[1736341249054,0.17624739,95050.0,95046.0,0.001]
[1736341249275,0.17624739,95050.0,95042.0,0.210431]
[1736341249276,0.07624739,95050.0,95047.0,0.22512817]
[1736341249480,0.07624739,95050.0,95048.0,0.004]
[1736341249723,0.07624739,95050.0,95049.0,0.47941885]
[1736341250072,0.07624739,95050.0,95049.0,0.48441885]
[1736341250290,0.07612072,95050.0,95049.0,0.38011909]
[1736341250478,0.07612072,95050.0,95049.0,0.37511909]
[1736341250696,0.1,95064.0,95062.0,0.210389]
[1736341250913,0.1,95073.0,95062.0,0.266789]
[1736341251120,0.00050957,95063.0,95062.0,0.43145805]
[1736341251332,0.00050957,95063.0,95062.0,0.53575781]
[1736341251537,0.00050957,95063.0,95062.0,0.55875781]
[1736341251742,0.00050957,95063.0,95062.0,2.05875781]
[1736341252595,5.7e-07,95063.0,95062.0,2.60335781]
[1736341253236,0.00100057,95063.0,95062.0,2.64504075]
[1736341253412,0.00100057,95063.0,95062.0,2.61724749]
[1736341253567,5.7e-07,95063.0,95062.0,2.60824749]
[1736341253772,0.00100057,95063.0,95062.0,2.6345294]
[1736341254358,5.7e-07,95063.0,95062.0,2.6185294]
[1736341254834,5.7e-07,95063.0,95062.0,1.89664749]
[1736341255154,5.7e-07,95063.0,95062.0,2.04664749]
[1736341255926,5.7e-07,95063.0,95062.0,2.04064749]
[1736341256131,5.7e-07,95063.0,95062.0,1.72994773]
[1736341256274,0.08040057,95063.0,95062.0,0.08295873]
[1736341256674,0.08040057,95063.0,95062.0,0.09195873]
[1736341256883,0.08040057,95063.0,95062.0,0.07595873]
[1736341257087,0.08040057,95063.0,95062.0,0.07995873]
[1736341257292,0.08040057,95063.0,95062.0,0.08895873]
[1736341257507,0.08040057,95063.0,95062.0,0.07995873]
[1736341257711,0.08040057,95063.0,95062.0,0.07595873]
[1736341257924,0.08040057,95063.0,95062.0,1.58195873]
[1736341258261,0.08040057,95063.0,95062.0,1.58395873]
[1736341260123,0.0464,95069.0,95062.0,1.58395873]
[1736341260124,0.0464,95069.0,95063.0,0.420772]
[1736341260277,0.04655272,95069.0,95063.0,0.210386]
[1736341260499,0.04655272,95069.0,95068.0,0.210375]
[1736341260704,0.0001706,95080.0,95078.0,0.15]
[1736341260901,0.0001706,95080.0,95079.0,0.26530503]
[1736341261107,0.0001706,95080.0,95079.0,0.26425341]
[1736341261305,0.0001706,95080.0,95079.0,0.49760441]
[1736341261712,0.0001706,95080.0,95079.0,1.99760441]
[1736341262296,6e-07,95080.0,95079.0,1.99760441]
[1736341263707,6e-07,95080.0,95079.0,2.01260441]
[1736341264329,6e-07,95080.0,95079.0,2.03337461]
[1736341264529,6e-07,95080.0,95079.0,2.01260441]
[1736341264732,6e-07,95080.0,95079.0,2.06960441]
[1736341265087,6e-07,95080.0,95079.0,1.73530465]
[1736341265287,6e-07,95080.0,95079.0,1.79230465]
[1736341265541,6e-07,95080.0,95079.0,0.207]
[1736341265717,6e-07,95080.0,95079.0,0.16824836]
[1736341265887,6e-07,95080.0,95079.0,0.43559936]
[1736341266087,6e-07,95080.0,95079.0,0.44159936]
[1736341266418,6e-07,95080.0,95079.0,0.30059936]
[1736341266619,0.2805006,95080.0,95079.0,0.02724836]
[1736341266781,0.2805006,95080.0,95079.0,0.01368627]
[1736341266995,0.2805006,95080.0,95079.0,0.006]
[1736341267393,0.1,95076.0,95075.0,0.057]
[1736341267901,0.1,95076.0,95075.0,0.06632922]
[1736341268532,0.1,95076.0,95075.0,0.00932922]
[1736341268736,0.1805006,95080.0,95075.0,0.00932922]
[1736341268737,0.0805006,95080.0,95076.0,0.210358]
[1736341268946,6e-07,95080.0,95078.0,0.210353]
[1736341269190,6e-07,95080.0,95079.0,0.00932244]
[1736341269752,6e-07,95080.0,95079.0,0.15932244]
[1736341269992,6e-07,95080.0,95079.0,0.2636222]
[1736341270201,6e-07,95080.0,95079.0,1.7636222]
[1736341270403,6e-07,95080.0,95079.0,1.7676222]
[1736341270615,6e-07,95080.0,95079.0,1.7636222]
[1736341271005,6e-07,95080.0,95079.0,1.7656222]
[1736341271177,0.0010006,95080.0,95079.0,1.8226222]
[1736341271588,0.0010006,95080.0,95078.0,0.210353]
[1736341271787,0.0010006,95080.0,95078.0,0.267353]
[1736341272583,6e-07,95080.0,95078.0,0.267353]
[1736341273420,6e-07,95080.0,95078.0,0.210353]
[1736341273860,0.0010006,95080.0,95078.0,0.212353]
[1736341274028,6e-07,95080.0,95078.0,0.212353]
[1736341274376,0.0010006,95080.0,95078.0,0.221353]
[1736341274717,6e-07,95080.0,95078.0,0.212353]
[1736341274911,0.0010006,95080.0,95078.0,0.219353]
[1736341275319,6e-07,95080.0,95078.0,0.210353]
[1736341276346,0.0020006,95080.0,95078.0,0.210353]
[1736341276748,6e-07,95080.0,95078.0,0.210353]
[1736341277088,0.0010006,95080.0,95078.0,0.219353]
[1736341277292,6e-07,95080.0,95078.0,0.215353]
[1736341277623,0.0010006,95080.0,95078.0,0.219353]
[1736341278020,6e-07,95080.0,95078.0,0.210353]
[1736341278199,6e-07,95080.0,95078.0,0.759953]
[1736341278390,0.0010006,95080.0,95078.0,0.768953]
[1736341278992,0.0010006,95080.0,95078.0,0.224353]
[1736341279599,0.0010006,95080.0,95078.0,0.219353]
[1736341279770,6e-07,95080.0,95079.0,0.73405476]
[1736341280126,8.52e-05,95102.0,95080.0,0.92386]
[1736341280296,0.0001762,95102.0,95101.0,0.210302]
[1736341280498,0.0001762,95102.0,95101.0,0.267302]
[1736341281158,0.0001762,95102.0,95101.0,0.417302]
[1736341281297,0.0001654,95110.0,95102.0,0.15]
[1736341281482,0.0001654,95110.0,95109.0,0.15]
[1736341282879,0.0001654,95110.0,95109.0,0.207]
[1736341283029,0.0001654,95110.0,95109.0,0.0106554]
[1736341283257,0.18666516,95110.0,95108.0,0.210287]
[1736341283415,0.10429976,95109.0,95108.0,0.210287]
[1736341284722,0.0001654,95110.0,95108.0,0.215287]
[1736341284921,0.0001654,95110.0,95108.0,0.210287]
[1736341285236,0.0001654,95110.0,95108.0,0.215287]
[1736341285419,0.0001654,95110.0,95109.0,0.05696]
[1736341285820,0.0001654,95110.0,95108.0,0.217287]
[1736341286039,0.0761704,95148.0,95109.0,1.36024]
[1736341286239,8.54e-05,95127.0,95126.0,0.210247]
[1736341286442,8.54e-05,95127.0,95126.0,0.360247]
[1736341286849,4e-07,95127.0,95126.0,0.360247]
[1736341287853,4e-07,95127.0,95126.0,0.417207]
[1736341287990,4e-07,95127.0,95126.0,0.52150676]
[1736341288187,4e-07,95127.0,95126.0,0.53550676]
[1736341288777,7.844e-05,95136.0,95135.0,0.360227]
[1736341289046,0.00023108,95136.0,95135.0,0.360227]
[1736341289408,0.00023108,95136.0,95135.0,0.707459]
[1736341289607,0.0001704,95148.0,95140.0,0.210216]
[1736341289812,0.0001704,95148.0,95140.0,1.656061]
[1736341290019,0.0001704,95148.0,95140.0,1.038569]
[1736341290213,2e-07,95141.0,95140.0,1.038569]
[1736341290419,2e-07,95141.0,95140.0,0.360216]
[1736341291303,2e-07,95141.0,95140.0,0.362216]
[1736341291506,0.0010002,95141.0,95140.0,0.371216]
[1736341292302,0.075,95169.0,95156.0,0.360181]
[1736341292543,0.075,95169.0,95156.0,0.417781]
[1736341292749,0.0466,95177.0,95156.0,0.417781]
[1736341294053,0.1466,95177.0,95156.0,0.363181]
[1736341294406,0.1466,95177.0,95156.0,0.372181]
[1736341294717,0.0466,95177.0,95156.0,0.372181]
[1736341294919,0.0466,95177.0,95156.0,1.227877]
[1736341295122,0.0466,95177.0,95156.0,0.699612]
[1736341295326,0.0466,95177.0,95156.0,0.372181]
[1736341295704,0.0466,95177.0,95156.0,0.532178]
[1736341296113,0.0466,95177.0,95156.0,0.429781]
[1736341296316,0.0466,95177.0,95156.0,0.530778]
[1736341296974,0.0801,95190.0,95156.0,0.530778]
[1736341297319,0.0801,95190.0,95156.0,0.54132292]
[1736341297521,0.0801,95190.0,95158.0,0.360176]
[1736341297522,4e-07,95159.0,95158.0,0.360176]
[1736341297969,0.0801,95190.0,95165.0,0.360161]
[1736341298123,5e-07,95166.0,95165.0,0.360161]
[1736341298338,5e-07,95166.0,95165.0,0.417761]
[1736341298761,5e-07,95166.0,95165.0,0.360161]
[1736341298983,5e-07,95166.0,95165.0,0.417761]
[1736341299429,5e-07,95166.0,95165.0,0.426761]
[1736341300670,5e-07,95166.0,95165.0,0.431761]
[1736341301074,5e-07,95166.0,95165.0,0.422761]
[1736341301272,5e-07,95166.0,95165.0,0.417761]
[1736341301479,5e-07,95166.0,95165.0,0.431761]
[1736341302375,0.0816,95201.0,95189.0,0.15]
[1736341302577,8.53e-05,95205.0,95192.0,0.15]
[1736341302778,0.0002379,95205.0,95204.0,0.360075]
[1736341302979,0.0002379,95205.0,95204.0,0.36748441]
[1736341303564,9e-07,95205.0,95204.0,0.52370152]
[1736341303705,0.014441,95227.0,95204.0,0.52370152]
[1736341303706,0.014441,95227.0,95226.0,0.360026]
[1736341303898,0.014441,95227.0,95226.0,0.417586]
[1736341304105,0.014441,95227.0,95226.0,0.45379463]
[1736341304482,0.014441,95227.0,95226.0,0.45161599]
[1736341305041,0.014441,95227.0,95226.0,0.45761599]
[1736341305238,0.014441,95227.0,95226.0,0.40005599]
[1736341305843,0.014441,95227.0,95226.0,0.45761599]
[1736341306291,0.014441,95227.0,95226.0,0.40005599]
[1736341306486,0.014441,95227.0,95226.0,0.45761599]
[1736341306688,0.014441,95227.0,95226.0,0.45861599]
[1736341307655,0.014441,95227.0,95226.0,0.40105599]
[1736341307903,0.014441,95227.0,95226.0,0.46897726]
[1736341309098,0.0462,95237.0,95236.0,0.360004]
[1736341309424,0.04635249,95237.0,95236.0,0.3656413]
[1736341309568,0.04635249,95237.0,95236.0,0.39457851]
[1736341310193,0.00015249,95237.0,95236.0,0.39457851]
[1736341310726,0.00015249,95237.0,95236.0,0.45213851]
[1736341311141,0.00015249,95237.0,95236.0,0.57943827]
[1736341311343,4.9e-07,95237.0,95236.0,0.57943827]
[1736341311550,4.9e-07,95237.0,95236.0,0.58043827]
[1736341311777,4.9e-07,95237.0,95236.0,0.45213851]
[1736341312200,4.9e-07,95237.0,95236.0,0.46113851]
[1736341312314,4.9e-07,95237.0,95236.0,0.40357851]
[1736341312511,4.9e-07,95237.0,95236.0,0.40657851]
[1736341312724,0.18200025,95237.0,95236.0,0.04657451]
[1736341313126,0.07770049,95237.0,95236.0,0.04657451]
[1736341313775,0.07770049,95237.0,95236.0,0.04357451]
[1736341313979,4.9e-07,95237.0,95236.0,0.17087427]
[1736341314191,4.9e-07,95237.0,95236.0,0.04357451]
[1736341314359,4.9e-07,95237.0,95236.0,0.03457451]
[1736341314560,4.9e-07,95237.0,95236.0,0.09213451]
[1736341314772,4.9e-07,95237.0,95236.0,0.10113451]
[1736341315177,4.9e-07,95237.0,95236.0,0.04357451]
[1736341315376,4.9e-07,95237.0,95236.0,0.10113451]
[1736341316067,4.9e-07,95237.0,95236.0,0.12413451]
[1736341316274,4.9e-07,95237.0,95236.0,0.22843427]
[1736341316414,4.9e-07,95237.0,95236.0,0.40239073]
[1736341316619,4.9e-07,95237.0,95236.0,0.40539073]
[1736341317024,4.9e-07,95237.0,95236.0,0.40535073]
[1736341317220,4.9e-07,95237.0,95236.0,0.38139427]
[1736341318024,4.9e-07,95237.0,95236.0,0.36939427]
[1736341318507,0.047,95252.0,95251.0,0.359971]
[1736341318885,0.047,95252.0,95251.0,0.39489039]
[1736341319095,0.0782,95259.0,95258.0,0.209956]
[1736341319500,0.0496,95265.0,95264.0,0.359942]
[1736341319700,8.52e-05,95301.0,95279.0,0.209909]
[1736341319701,0.1,95280.0,95279.0,0.209909]
[1736341319872,0.20429976,95280.0,95279.0,0.209909]
[1736341320081,0.10429976,95280.0,95279.0,0.21580126]
[1736341320295,0.1,95292.0,95289.0,0.209887]
[1736341320461,0.20429976,95291.0,95290.0,0.209885]
[1736341320661,0.10429976,95291.0,95290.0,0.21574016]
[1736341321329,0.00050851,95294.0,95291.0,0.209882]
[1736341321539,0.10480827,95294.0,95292.0,0.15]
[1736341321750,0.00050851,95294.0,95293.0,0.359879]
[1736341322016,7e-05,95315.0,95314.0,0.359832]
[1736341322231,0.00022248,95315.0,95314.0,0.417952]
[1736341322639,0.00022248,95315.0,95314.0,0.42409754]
[1736341323122,0.00022248,95315.0,95314.0,0.45301107]
[1736341323322,0.00022248,95315.0,95314.0,0.39489107]
[1736341323562,0.00022248,95315.0,95314.0,0.45301107]
[1736341323760,0.00022248,95315.0,95314.0,0.39489107]
[1736341324151,0.00022248,95315.0,95314.0,0.45301107]
[1736341324519,0.00022248,95315.0,95314.0,0.45501107]
[1736341324722,0.00022248,95315.0,95314.0,0.45801107]
[1736341324919,0.00022248,95315.0,95314.0,0.45601107]
[1736341325125,0.00022248,95315.0,95314.0,0.46201107]
[1736341325669,0.00022248,95315.0,95314.0,0.45401107]
[1736341325874,0.00022248,95315.0,95314.0,0.46101107]
[1736341326718,4.8e-07,95315.0,95314.0,0.56101107]
[1736341327067,4.8e-07,95315.0,95314.0,0.56001107]
[1736341327286,4.8e-07,95315.0,95314.0,0.57050493]
[1736341327483,4.8e-07,95315.0,95314.0,0.47250493]
[1736341327705,4.8e-07,95315.0,95314.0,0.46550493]
[1736341328098,4.8e-07,95315.0,95314.0,0.56950493]
[1736341328500,4.8e-07,95315.0,95314.0,0.56650493]
[1736341328903,4.8e-07,95315.0,95314.0,0.57550493]
[1736341329109,4.8e-07,95315.0,95314.0,0.41738493]
[1736341329295,4.8e-07,95315.0,95314.0,0.04705907]
[1736341329296,0.33090024,95315.0,95314.0,0.04705907]
[1736341329495,0.1,95302.0,95291.0,0.209883]
[1736341329791,0.1,95295.0,95286.0,0.209892]
[1736341330011,0.1,95293.0,95292.0,0.00519544]
[1736341330263,0.1,95277.0,95271.0,0.209927]
[1736341330509,0.1,95277.0,95255.0,0.02116628]
[1736341330510,0.10429976,95276.0,95260.0,0.19131029]
[1736341330718,0.10429976,95276.0,95272.0,0.0052629]
[1736341330719,0.1,95275.0,95272.0,0.0052629]
[1736341330914,0.10429976,95274.0,95267.0,0.19131029]
[1736341331155,0.10429976,95274.0,95273.0,0.00525952]
[1736341331361,0.29098,95293.0,95267.0,0.19131029]
[1736341331362,0.0811,95293.0,95267.0,0.19131029]
[1736341331572,0.1,95277.0,95274.0,0.20992]
[1736341331775,0.10429976,95276.0,95274.0,0.21042851]
[1736341331978,0.10429976,95276.0,95275.0,0.00525278]
[1736341333566,0.20429976,95276.0,95275.0,0.00525278]
[1736341333767,0.20429976,95276.0,95274.0,0.00050851]
[1736341334073,0.28089976,95276.0,95275.0,0.00525278]
[1736341334430,0.28089976,95276.0,95275.0,0.00725278]
[1736341334635,0.1,95275.0,95274.0,0.00050851]
[1736341334786,0.1,95275.0,95274.0,0.21042851]
[1736341334787,0.10429976,95275.0,95274.0,0.21042851]
[1736341334986,0.0766,95276.0,95274.0,0.21042851]
[1736341335203,0.0766,95276.0,95274.0,0.25769566]
[1736341335402,0.0776,95276.0,95274.0,0.25769566]
[1736341335815,0.0766,95276.0,95274.0,0.25769566]
[1736341336012,0.10429976,95275.0,95274.0,0.25769566]
[1736341336274,0.10429976,95275.0,95274.0,0.00576466]
[1736341336275,0.20429976,95275.0,95274.0,0.00576466]
[1736341336643,0.20429976,95275.0,95274.0,0.00050851]
[1736341336843,0.20429976,95275.0,95274.0,0.00576466]
[1736341337238,0.20429976,95275.0,95274.0,0.01176466]
[1736341337439,0.20429976,95275.0,95274.0,0.00576466]
[1736341337647,0.20429976,95275.0,95274.0,0.21568466]
[1736341337898,0.20429976,95275.0,95274.0,0.21242851]
[1736341338128,0.10429976,95275.0,95274.0,0.21568466]
[1736341338293,0.20429976,95275.0,95274.0,0.21568466]
[1736341338468,0.0756,95276.0,95274.0,0.21568466]
[1736341339067,0.076,95292.0,95275.0,0.15]
[1736341339278,0.076,95292.0,95290.0,0.209885]
[1736341339279,0.10429976,95291.0,95290.0,0.209885]
[1736341339549,0.076,95292.0,95290.0,0.209885]
[1736341339753,0.076,95292.0,95290.0,0.21508719]
[1736341340407,0.12729976,95291.0,95290.0,0.21508719]
[1736341341038,0.076,95292.0,95290.0,0.21508719]
[1736341341470,0.22729976,95291.0,95290.0,0.00520219]
[1736341342114,0.22729976,95291.0,95290.0,0.002]
[1736341342318,0.22729976,95291.0,95290.0,0.00720219]
[1736341342519,0.22729976,95291.0,95290.0,0.002]
[1736341343114,0.1,95275.0,95274.0,0.00050851]
[1736341343295,0.22729976,95275.0,95274.0,0.00050851]
[1736341343917,0.22729976,95275.0,95274.0,0.00576466]
[1736341344160,0.22729976,95275.0,95274.0,0.00050851]
[1736341344366,0.22729976,95275.0,95274.0,0.00576466]
[1736341344538,0.22729976,95275.0,95274.0,0.00550851]
[1736341344894,0.22729976,95275.0,95274.0,0.00576466]
[1736341345104,0.22729976,95275.0,95274.0,0.01076466]
[1736341345439,0.22729976,95275.0,95274.0,0.00676466]
[1736341345653,0.22729976,95275.0,95274.0,0.00150851]
[1736341345830,0.22729976,95275.0,95274.0,0.00576466]
[1736341345831,0.43721776,95275.0,95274.0,0.00576466]
[1736341346268,0.43721776,95275.0,95274.0,0.00050851]
[1736341346668,0.22729976,95275.0,95274.0,0.00050851]
[1736341346874,0.22729976,95275.0,95274.0,0.00150851]
[1736341347074,0.22729976,95275.0,95274.0,0.00050851]
[1736341347271,0.43721776,95275.0,95274.0,0.00050851]
[1736341347473,0.56631776,95275.0,95274.0,0.00150851]
[1736341348160,0.56631776,95275.0,95274.0,0.00050851]
[1736341348514,0.1821,95254.0,95250.0,0.50360785]
[1736341348666,0.28639976,95254.0,95250.0,0.50360785]
[1736341348870,0.28639976,95254.0,95250.0,0.71357885]
[1736341349119,0.1,95262.0,95257.0,0.209958]
[1736341349323,0.0821,95266.0,95265.0,0.20994]
[1736341349737,0.1,95270.0,95265.0,0.20994]
[1736341349941,0.14880747,95275.0,95274.0,0.20992]
[1736341350145,0.00350747,95275.0,95274.0,0.20992]
[1736341350359,0.10350747,95275.0,95274.0,0.20992]
[1736341350572,0.00050747,95275.0,95274.0,0.20992]
[1736341350985,0.10050747,95275.0,95274.0,0.20992]
[1736341351203,0.00050747,95275.0,95274.0,0.20992]
[1736341351874,0.00050747,95275.0,95274.0,0.21292]
[1736341352730,0.00050747,95275.0,95274.0,0.36292]
[1736341352937,0.095241,95323.0,95296.0,0.15]
[1736341353157,0.095241,95323.0,95322.0,0.209815]
[1736341353375,0.09535285,95323.0,95322.0,0.209815]
[1736341353582,0.01455285,95323.0,95322.0,0.209815]
[1736341354019,0.02355285,95323.0,95322.0,0.209815]
[1736341354226,0.02355285,95323.0,95322.0,0.268135]
[1736341354443,0.01455285,95323.0,95322.0,0.418135]
[1736341354653,0.01455285,95323.0,95322.0,0.424135]
[1736341355010,0.01455285,95323.0,95322.0,0.365815]
[1736341355213,0.01455285,95323.0,95322.0,0.424135]
[1736341356450,0.01455285,95323.0,95322.0,0.418135]
[1736341356994,0.01455285,95323.0,95322.0,0.420135]
[1736341357380,0.01555285,95323.0,95322.0,0.426135]
[1736341357573,0.01555285,95323.0,95322.0,0.43168717]
[1736341358185,0.01555285,95323.0,95322.0,0.37336717]
[1736341358362,0.01555285,95323.0,95322.0,0.43168717]
[1736341359448,0.01555285,95323.0,95322.0,0.63598693]
[1736341361425,0.01555285,95323.0,95322.0,0.6573923]
[1736341362008,0.01555285,95323.0,95322.0,1.5638943]
[1736341362243,0.01555285,95323.0,95322.0,0.8236233]
[1736341362417,0.01555285,95323.0,95322.0,0.8130833]
[1736341362982,0.01555285,95323.0,95322.0,0.6573523]